bitfinex/quotes_ETHUSD_20220113
["timestamp","ask_amount","ask_price","bid_price","bid_amount"]
[1642100873164,22.01209276,3276.6,3276.4,3.14659117]
[1642100873367,3.44527563,3276.5,3276.4,3.14659117]
[1642100873562,0.422,3276.5,3276.1,0.47104104]
[1642100873832,0.44,3277.0,3276.4,0.00454739]
[1642100874030,0.167463,3277.1,3276.7,0.47303516]
[1642100874031,2.37864006,3276.8,3276.7,0.47303516]
[1642100874429,2.67864006,3276.8,3276.7,0.47587728]
[1642100875229,3.44158006,3276.8,3276.7,0.00284212]
[1642100875729,2.67864006,3276.8,3276.5,0.00397896]
[1642100877662,3.14166006,3276.7,3276.5,0.00397896]
[1642100878664,2.37864006,3276.6,3276.5,0.00397896]
[1642100878865,2.67864006,3276.6,3276.5,0.00397896]
[1642100881069,2.67864006,3276.6,3276.5,0.00477896]
[1642100881914,3.53144006,3276.6,3276.5,0.00477896]
[1642100882916,4.65344006,3276.6,3276.5,0.00477896]
[1642100883115,9.20344006,3276.6,3276.5,0.00477896]
[1642100884519,10.94344006,3276.6,3276.5,0.00477896]
[1642100884719,14.49517702,3276.6,3276.5,0.00477896]
[1642100885265,32.38517702,3276.6,3276.5,0.00477896]
[1642100885862,18.6533153,3276.4,3276.1,0.122]
[1642100886063,0.122,3276.3,3276.1,0.122]
[1642100886263,0.122,3276.3,3276.2,0.00170527]
[1642100887165,0.74,3276.4,3276.2,0.00170527]
[1642100887363,0.3,3276.4,3276.2,0.00170527]
[1642100887563,2.37864006,3276.3,3275.9,0.55951199]
[1642100887766,3.89794846,3276.3,3276.0,0.00284212]
[1642100887964,4.19794846,3276.3,3276.0,0.00284212]
[1642100888165,5.08314846,3276.3,3275.8,0.00397897]
[1642100888364,4.96114846,3276.3,3275.4,0.76945266]
[1642100888565,1.0632,3276.3,3275.5,0.00568424]
[1642100889212,1.3,3276.3,3275.8,0.53383803]
[1642100889412,0.3,3276.3,3275.8,0.53383803]
[1642100889617,0.3,3276.4,3275.9,1.40725408]
[1642100889815,2.37864006,3276.2,3275.9,1.40725408]
[1642100890013,0.3,3276.1,3276.0,0.00284212]
[1642100891115,2.37864006,3276.3,3276.0,0.00284212]
[1642100891116,2.67864006,3276.3,3276.0,0.00284212]
[1642100891913,2.67864006,3276.3,3275.9,0.00341054]
[1642100892114,2.37864006,3276.2,3275.6,0.00511582]
[1642100892314,3.65,3276.1,3275.2,0.20351576]
[1642100892564,1.4786941,3275.9,3275.2,0.20351576]
[1642100892764,1.7786941,3275.9,3275.3,0.00170527]
[1642100892969,0.76332,3275.7,3275.3,0.00170527]
[1642100893364,1.06332,3275.7,3275.3,0.00170527]
[1642100894265,2.37864006,3275.6,3275.3,0.00170527]
[1642100894467,2.37864006,3275.6,3275.1,0.00284211]
[1642100894667,0.76335,3275.5,3275.1,0.00284211]
[1642100895269,0.3,3275.3,3275.1,0.00284211]
[1642100896318,0.1221,3275.5,3275.2,0.54537895]
[1642100896518,2.37864006,3275.6,3275.2,0.54537895]
[1642100896921,3.55173696,3275.6,3275.2,0.54537895]
[1642100897420,3.55173696,3275.6,3275.1,0.12494211]
[1642100897619,3.55173696,3275.6,3275.1,0.00284211]
[1642100897819,3.55173696,3275.6,3275.2,0.00227369]
[1642100898023,3.85173696,3275.6,3275.1,0.00284211]
[1642100898219,0.3,3275.6,3275.1,0.00284211]
[1642100898524,0.3,3275.6,3275.1,1.31680155]
[1642100898525,0.76334,3275.6,3275.1,1.31680155]
[1642100898720,0.3,3275.5,3275.1,1.31680155]
[1642100898919,0.3,3275.7,3275.2,0.00227369]
[1642100899120,0.00113685,3275.8,3275.2,0.00227369]
[1642100899319,0.00113685,3275.8,3275.6,0.49539212]
[1642100899972,4.21938456,3276.5,3275.6,0.49539212]
[1642100900167,9.39989699,3278.1,3275.8,9.95]
[1642100900367,9.39989699,3278.1,3277.2,0.01272623]
[1642100900368,6.34692419,3278.1,3277.2,0.01272623]
[1642100900583,3.9294,3279.1,3276.5,0.08499204]
[1642100900584,6.33297413,3278.2,3278.0,0.01227621]
[1642100900768,3.6279,3281.0,3278.1,10.00660352]
[1642100900967,0.12205,3281.2,3278.1,10.00660352]
[1642100900968,21.48992505,3280.4,3279.0,0.01268966]
[1642100901168,21.48992505,3280.4,3279.7,5.504]
[1642100901368,18.87882505,3280.4,3280.1,5.504]
[1642100901566,18.87882505,3280.4,3280.2,0.76195]
[1642100901567,10.84585333,3280.4,3280.2,0.76195]
[1642100901767,8.94483651,3280.4,3280.3,10.39]
[1642100901969,0.12205,3281.2,3280.4,10.44419126]
[1642100901970,10.85090486,3280.5,3280.4,10.44419126]
[1642100902169,10.01961685,3280.5,3280.4,8.85339084]
[1642100902368,6.26662881,3280.5,3280.4,8.85339084]
[1642100902568,0.12205,3281.2,3280.4,9.15339084]
[1642100902769,0.12205,3281.2,3281.1,0.01262986]
[1642100902967,0.12205,3281.2,3281.1,1.61727346]
[1642100903170,0.12205,3281.2,3281.1,1.17727346]
[1642100903368,0.12205,3281.2,3281.1,2.6663789]
[1642100903826,0.122033,3281.6,3281.3,0.76177]
[1642100904024,8.90779042,3281.7,3281.4,0.07164551]
[1642100904228,2.84707056,3281.7,3281.4,3.3]
[1642100904423,2.84707056,3281.7,3281.4,4.0617184]
[1642100904624,2.79707056,3281.7,3281.5,1.0]
[1642100904825,0.1218,3282.4,3281.6,5.45896223]
[1642100905030,0.1218,3282.4,3281.9,1.52311]
[1642100905228,0.00284212,3282.0,3281.9,2.37241]
[1642100905426,0.1218,3283.0,3282.0,10.0]
[1642100905626,0.1218,3283.0,3282.2,0.6797721]
[1642100905830,0.1218,3284.0,3282.5,0.76141]
[1642100906029,0.1218,3284.0,3283.2,0.76135]
[1642100906227,0.12805266,3284.0,3283.3,0.49385551]
[1642100906426,0.12805266,3284.0,3283.4,0.04216671]
[1642100906648,0.12805266,3284.0,3283.3,0.49385551]
[1642100906649,0.12805266,3284.0,3283.8,1.13373041]
[1642100906826,0.00625266,3284.0,3283.9,6.30028596]
[1642100907027,0.00625266,3284.0,3283.9,0.8495]
[1642100907227,0.00625266,3284.0,3283.1,1.52269]
[1642100907228,0.12805266,3284.0,3282.6,0.01378987]
[1642100907479,0.20260886,3284.0,3282.6,0.01378987]
[1642100907669,0.00568423,3283.9,3282.7,0.7614615]
[1642100907870,0.1218,3283.8,3282.7,0.7614615]
[1642100908171,1.16390099,3283.2,3282.6,0.01378987]
[1642100908569,0.00113684,3283.1,3282.6,0.01378987]
[1642100909572,0.00113684,3283.1,3283.0,0.6377096]
[1642100909873,0.00113684,3283.1,3283.0,6.2877096]
[1642100910074,0.00113684,3283.1,3283.0,7.1659096]
[1642100910273,0.00113684,3283.1,3283.0,7.5877096]
[1642100910472,0.1218,3284.0,3283.1,10.0]
[1642100910677,0.00601721,3284.1,3283.5,0.7612517]
[1642100910876,0.00601721,3284.1,3283.8,9.65009715]
[1642100910877,0.00454739,3283.9,3283.8,9.65009715]
[1642100911072,0.00601721,3284.1,3283.9,3.3]
[1642100911721,0.00601721,3284.1,3283.9,4.0610106]
[1642100912322,0.00601721,3284.1,3283.9,0.7610106]
[1642100912921,0.00601721,3284.1,3283.8,5.06664335]
[1642100913122,0.00601721,3284.1,3283.9,1.0]
[1642100913822,0.00601721,3284.1,3283.9,3.35710032]
[1642100914021,0.00601721,3284.1,3284.0,5.71108]
[1642100914221,0.00601721,3284.1,3284.0,7.01108]
[1642100914421,0.00715406,3284.1,3284.0,7.01108]
[1642100914622,0.00715406,3284.1,3284.0,10.16108]
[1642100914982,0.00715406,3284.1,3284.0,7.01108]
[1642100915178,3.7086,3285.8,3284.1,10.05942374]
[1642100915179,0.1218,3285.2,3284.1,10.05942374]
[1642100915377,1.41025803,3285.2,3284.7,0.57827956]
[1642100915777,1.41025803,3285.2,3284.5,0.8826426]
[1642100916079,1.41025803,3285.2,3284.5,0.1217]
[1642100916080,0.1217,3284.9,3284.5,0.1217]
[1642100916475,0.00397896,3284.8,3284.5,0.1217]
[1642100916677,1.19644475,3284.6,3284.5,0.1217]
[1642100916877,1.19644475,3284.6,3284.5,0.69243535]
[1642100916878,1.31814475,3284.6,3284.5,0.69243535]
[1642100917079,1.62098687,3284.6,3284.5,0.69243535]
[1642100918721,1.19928687,3284.6,3284.5,0.69243535]
[1642100918924,0.00284212,3284.6,3284.5,0.69243535]
[1642100919719,0.00284212,3284.6,3284.5,3.83481879]
[1642100919921,1.47135707,3284.6,3284.5,3.71311879]
[1642100921423,1.77135707,3284.6,3284.5,3.14238344]
[1642100922124,1.47135707,3284.6,3284.5,3.14238344]
[1642100922569,0.00284212,3284.6,3284.5,8.4433]
[1642100922770,0.00284212,3284.6,3284.5,3.7433]
[1642100922970,0.00284212,3284.6,3284.5,1.60091656]
[1642100923168,1.2848942,3285.0,3284.5,0.60091656]
[1642100923569,0.00170527,3284.9,3284.5,0.60091656]
[1642100923772,0.1217,3284.8,3284.5,0.60091656]
[1642100923970,0.12283684,3284.8,3284.5,0.60091656]
[1642100924169,0.00113684,3284.8,3284.5,0.60091656]
[1642100924567,1.51141971,3284.6,3284.5,0.60091656]
[1642100924769,1.81141971,3284.6,3284.5,0.60091656]
[1642100924968,1.81141971,3284.6,3284.4,3.14145956]
[1642100925568,0.00113684,3284.8,3284.5,1.0]
[1642100925968,0.00113684,3284.8,3284.5,4.14145956]
[1642100926214,0.00113684,3284.8,3284.6,1.49598262]
[1642100926815,1.28954999,3284.8,3284.6,1.49598262]
[1642100927018,1.28954999,3284.8,3284.6,4.11384663]
[1642100927216,0.3,3284.7,3284.6,4.11384663]
[1642100927616,0.3,3284.7,3284.6,3.11384663]
[1642100927816,0.3,3284.7,3284.6,2.61786401]
[1642100928217,0.3,3284.7,3284.2,1.0]
[1642100928417,0.3,3284.7,3284.1,0.045463]
[1642100928616,0.3,3284.7,3284.3,0.00170527]
[1642100928817,0.3,3284.7,3284.2,0.0022737]
[1642100929216,0.3,3284.7,3284.6,0.44849286]
[1642100929418,0.25,3284.7,3284.6,0.44849286]
[1642100932181,1.28954999,3284.8,3284.6,0.44849286]
[1642100932182,0.00113684,3284.8,3284.6,0.44849286]
[1642100932581,0.00113684,3284.8,3284.6,2.99021306]
[1642100932981,0.00113684,3284.8,3284.7,8.55]
[1642100933179,0.9848942,3285.0,3284.8,8.35]
[1642100933380,0.9348942,3285.0,3284.9,5.29546511]
[1642100933581,0.1217,3285.5,3284.9,2.49546511]
[1642100933825,0.00113685,3285.0,3284.9,2.49546511]
[1642100934020,0.1217,3285.5,3284.8,0.806343]
[1642100934230,0.4217,3285.5,3284.9,3.05]
[1642100934520,0.00227369,3285.4,3284.9,3.05]
[1642100934920,0.00170527,3285.3,3284.9,3.05]
[1642100935121,0.00170527,3285.3,3285.0,1.0]
[1642100935322,0.00113685,3285.2,3285.1,1.5217266]
[1642100938176,17.89,3286.0,3285.2,8.55]
[1642100938376,17.89,3286.0,3285.5,0.7607768]
[1642100938576,0.00341054,3285.8,3285.6,0.61698346]
[1642100938777,0.00341054,3285.8,3285.6,0.56614987]
[1642100938976,0.00284211,3285.7,3285.6,0.56614987]
[1642100939177,0.00284211,3285.7,3285.6,2.04532334]
[1642100939380,14.5854,3287.1,3285.6,2.04532334]
[1642100939381,0.1217,3287.0,3285.7,10.0]
[1642100939578,0.1217,3287.0,3286.4,0.05210044]
[1642100939778,0.1217,3287.0,3286.3,0.6875]
[1642100940178,0.1217,3287.7,3287.6,0.47167729]
[1642100940377,0.9848942,3288.0,3287.6,0.47167729]
[1642100940378,0.1216,3287.8,3287.6,0.47167729]
[1642100940581,1.48912435,3287.7,3287.6,0.47167729]
[1642100940777,1.61072435,3287.7,3287.6,0.47167729]
[1642100940977,0.1216,3287.7,3287.6,0.47167729]
[1642100941240,0.1216,3287.8,3287.6,0.47167729]
[1642100941432,0.01250532,3287.9,3287.8,10.045463]
[1642100941628,0.9848942,3288.0,3287.8,10.045463]
[1642100941629,0.9848942,3288.0,3287.9,10.0]
[1642100941827,1.1296,3289.8,3287.9,10.0]
[1642100941828,0.1216,3289.1,3288.8,0.46583462]
[1642100942032,1.1296,3289.8,3287.9,0.1338211]
[1642100942033,1.24002141,3289.0,3288.5,1.565696]
[1642100942229,0.12728424,3288.9,3288.2,0.045463]
[1642100942727,0.00511581,3288.8,3288.2,0.045463]
[1642100943130,0.12614739,3288.7,3287.8,0.045463]
[1642100943328,17.89,3288.6,3287.6,0.045463]
[1642100943530,0.1216,3288.5,3287.6,0.045463]
[1642100943732,0.12501054,3288.5,3287.7,0.00113685]
[1642100943933,0.00284212,3288.4,3287.7,0.00113685]
[1642100944128,0.1216,3288.3,3287.7,0.53976703]
[1642100944329,1.32051666,3287.8,3287.7,0.53976703]
[1642100945169,0.00170527,3288.2,3287.7,0.53976703]
[1642100945170,0.00170527,3288.2,3287.8,0.88183]
[1642100945369,0.00170527,3288.2,3288.1,10.045463]
[1642100945671,17.89,3289.2,3288.1,11.167063]
[1642100945868,0.1216,3289.1,3288.3,0.045463]
[1642100946072,1.17898205,3288.5,3288.3,0.045463]
[1642100946468,0.00284212,3288.4,3288.3,0.045463]
[1642100946669,0.00284212,3288.4,3288.3,1.57398281]
[1642100947269,0.00284212,3288.4,3288.3,9.62398281]
[1642100947670,0.00284212,3288.4,3288.3,10.38407281]
[1642100947869,0.1216,3289.2,3288.3,2.33407281]
[1642100948071,0.1216,3289.2,3288.7,0.760079]
[1642100948270,0.00397896,3289.1,3288.7,0.760079]
[1642100948740,0.00341054,3289.0,3288.7,0.760079]
[1642100949127,0.00284212,3288.9,3288.7,0.805542]
[1642100949426,0.00227369,3288.8,3288.7,0.805542]
[1642100949830,0.00227369,3288.8,3288.7,0.760079]
[1642100950628,0.00227369,3288.8,3288.7,8.710079]
[1642100950929,0.00227369,3288.8,3288.7,1.760079]
[1642100951329,0.00227369,3288.8,3288.7,4.660079]
[1642100951528,0.00227369,3288.8,3288.7,1.760079]
[1642100951933,0.00227369,3288.8,3288.7,0.760079]
[1642100952570,0.00227369,3288.8,3288.6,1.5201579]
[1642100952970,0.00170527,3288.7,3288.6,1.5201579]
[1642100953973,0.00170527,3288.7,3288.4,0.1216]
[1642100954374,0.00113684,3288.6,3288.4,0.1216]
[1642100954779,0.00227369,3288.8,3288.4,0.8818111]
[1642100955175,0.00170527,3288.7,3288.4,0.8818111]
[1642100955374,0.00170527,3288.7,3288.4,0.7602111]
[1642100955576,0.00113684,3288.6,3288.2,1.520437]
[1642100955774,0.00113684,3288.6,3288.1,0.045463]
[1642100955775,0.12273684,3288.6,3288.1,0.045463]
[1642100955975,0.1216,3288.6,3288.1,0.8057804]
[1642100956225,0.1216,3288.6,3288.2,0.00113685]
[1642100956422,17.89,3288.5,3288.2,0.00113685]
[1642100956621,18.19,3288.5,3288.2,0.00113685]
[1642100957822,17.89,3288.3,3288.2,0.00113685]
[1642100958022,18.19,3288.3,3288.2,0.00113685]
[1642100958422,18.19,3288.3,3287.9,0.00284212]
[1642100958623,18.19,3288.3,3288.2,2.35465041]
[1642100958824,19.70920745,3288.3,3288.2,2.35465041]
[1642100959025,20.37520745,3288.3,3288.2,2.35578726]
[1642100959227,10.0,3288.2,3287.9,3.14145956]
[1642100959424,0.366,3288.1,3287.5,4.04435572]
[1642100959626,1.6241,3288.1,3288.0,0.00113685]
[1642100959974,2.0457,3288.1,3287.8,0.00227369]
[1642100960173,0.1216,3288.0,3287.8,0.00227369]
[1642100960370,7.716,3287.9,3287.8,0.00227369]
[1642100960571,8.1376,3287.9,3287.8,0.00227369]
[1642100960972,26.0276,3287.9,3287.8,0.00227369]
[1642100961170,26.0276,3287.9,3287.7,0.00284212]
[1642100961374,7.10947476,3287.8,3287.7,0.00284212]
[1642100961572,10.71520394,3287.8,3287.7,0.00284212]
[1642100961772,5.25883034,3287.8,3287.7,0.00284212]
[1642100961974,19.79947476,3287.8,3287.7,0.00284212]
[1642100962273,1.48787476,3287.8,3287.7,0.00284212]
[1642100963072,19.37787476,3287.8,3287.7,0.00284212]
[1642100963272,19.67787476,3287.8,3287.7,0.00284212]
[1642100963473,20.34387476,3287.8,3287.7,0.00284212]
[1642100964418,21.22614476,3287.8,3287.7,0.00284212]
[1642100964617,20.16547476,3287.8,3287.7,0.00284212]
[1642100964819,0.1216,3288.5,3287.7,0.00284212]
[1642100965023,0.366,3289.0,3288.0,0.045463]
[1642100965220,0.00113685,3288.4,3288.2,0.05223615]
[1642100965418,0.366,3289.0,3288.3,0.045463]
[1642100965419,0.00284212,3288.7,3288.3,0.045463]
[1642100965619,0.12557897,3288.9,3288.4,0.04654158]
[1642100965818,0.00227369,3288.6,3288.5,0.8056926]
[1642100966019,1.47243763,3288.7,3288.5,0.8056926]
[1642100966220,0.00227369,3288.6,3288.5,0.8056926]
[1642100966619,0.00227369,3288.6,3288.3,0.045463]
[1642100967020,0.00170527,3288.5,3288.3,0.8057392]
[1642100967222,0.00170527,3288.5,3288.4,6.4716]
[1642100967476,0.1216,3289.6,3288.4,6.4716]
[1642100967675,18.0116,3289.7,3288.6,0.045463]
[1642100967870,18.0116,3289.7,3288.9,0.045463]
[1642100967871,17.84,3289.4,3288.9,0.045463]
[1642100968071,1.33855727,3289.3,3288.9,0.045463]
[1642100968270,1.34480993,3289.3,3288.9,0.045463]
[1642100968472,0.00568424,3289.2,3288.9,0.045463]
[1642100968872,0.00511581,3289.1,3288.9,0.045463]
[1642100969273,0.00454739,3289.0,3288.9,0.045463]
[1642100969673,0.00568424,3289.0,3288.9,0.045463]
[1642100971230,0.00568424,3289.0,3288.7,0.7602029]
[1642100971423,0.00568424,3289.0,3288.6,2.38211828]
[1642100971624,1.52063,3289.6,3288.7,9.95]
[1642100971825,1.7783118,3290.3,3288.7,9.95]
[1642100971826,0.0252075,3290.4,3289.5,0.045463]
[1642100972023,0.0252075,3290.4,3290.0,0.045463]
[1642100972223,18.0115,3290.8,3290.0,0.045463]
[1642100972623,1.47672243,3290.7,3290.0,0.045463]
[1642100972827,0.1215,3290.6,3290.0,0.045463]
[1642100973024,0.13116319,3290.6,3290.0,0.045463]
[1642100973228,0.00909477,3290.5,3290.1,0.7596629]
[1642100973628,0.1215,3290.6,3290.4,0.05790641]
[1642100973827,0.9848942,3290.9,3290.4,0.05387208]
[1642100973828,17.89,3290.8,3290.4,0.05387208]
[1642100974127,17.89,3290.8,3290.2,0.04716827]
[1642100974128,1.39016964,3290.7,3290.2,0.04716827]
[1642100974526,1.39016964,3290.7,3290.3,0.00113685]
[1642100974972,1.69016964,3290.7,3290.3,0.00113685]
[1642100975172,1.99016964,3290.7,3290.3,0.00113685]
[1642100975575,19.88016964,3290.7,3290.3,0.00113685]
[1642100975874,17.89,3290.6,3290.3,0.00113685]
[1642100976073,0.0715,3290.5,3290.3,0.00113685]
[1642100976274,0.1215,3290.6,3290.3,0.00113685]
[1642100976874,1.26866964,3290.7,3290.3,0.00113685]
[1642100978375,19.18016964,3290.7,3290.3,0.00113685]
[1642100978577,17.89,3290.6,3290.3,0.00113685]
[1642100978820,17.89,3290.4,3290.3,0.00113685]
[1642100979023,18.3115,3290.4,3290.3,0.00113685]
[1642100979219,18.6115,3290.4,3290.2,0.00170527]
[1642100979423,5.6215,3290.3,3290.2,0.00170527]
[1642100979620,0.1215,3290.3,3290.2,0.00170527]
[1642100979920,17.89,3290.3,3290.2,0.00170527]
[1642100980320,0.3,3290.4,3290.2,0.00170527]
[1642100980522,0.3,3290.5,3290.2,0.00170527]
[1642100980719,0.7215,3290.6,3290.1,0.00227369]
[1642100980922,0.4215,3290.6,3290.1,0.00227369]
[1642100981123,0.4215,3290.6,3290.2,0.7598519]
[1642100981325,18.3115,3290.6,3290.2,0.7598519]
[1642100981521,18.3115,3290.6,3290.3,0.00113685]
[1642100981935,18.3115,3290.6,3289.4,0.1215]
[1642100981936,9.995463,3290.5,3289.4,0.1215]
[1642100982126,17.89,3290.3,3290.1,0.00113684]
[1642100982321,17.89,3290.3,3289.4,0.1215]
[1642100982322,6.75,3289.5,3288.9,2.33665528]
[1642100982583,0.3,3289.4,3288.9,2.33665528]
[1642100982775,18.3116,3289.4,3288.9,2.33665528]
[1642100983080,18.6116,3289.4,3288.7,2.87751164]
[1642100983275,1.14980391,3288.9,3288.7,2.87751164]
[1642100983476,1.44980391,3288.9,3288.8,0.00738951]
[1642100984076,1.44980391,3288.9,3288.8,7.51038951]
[1642100984273,0.1216,3289.7,3288.8,7.51038951]
[1642100984479,1.6799203,3292.5,3289.0,0.01278865]
[1642100984480,6.696,3290.4,3289.0,0.01278865]
[1642100984675,7.134,3290.4,3289.1,0.16644995]
[1642100984875,7.134,3290.4,3289.5,0.7599046]
[1642100985075,0.438,3290.4,3289.6,0.1215]
[1642100985374,0.438,3290.4,3289.7,0.0022737]
[1642100985375,1.33648119,3289.8,3289.7,0.0022737]
[1642100985975,1.33648119,3289.8,3289.6,0.7598506]
[1642100986226,1.33648119,3289.8,3289.5,0.00341054]
[1642100986423,17.89,3289.7,3288.9,0.1215]
[1642100986624,17.89,3289.7,3289.5,0.00341054]
[1642100986825,24.928,3289.6,3289.5,0.00341054]
[1642100987222,24.928,3289.6,3288.9,0.00682108]
[1642100987422,1.10139177,3289.1,3288.9,0.00682108]
[1642100987621,18.0116,3289.5,3288.9,0.00682108]
[1642100987921,0.3,3289.4,3288.9,0.00682108]
[1642100988422,0.3,3289.4,3289.0,0.7600743]
[1642100988821,19.39873132,3289.6,3289.1,0.00568424]
[1642100989023,0.3,3289.6,3289.1,0.00568424]
[1642100989222,0.3,3289.6,3289.0,0.12785266]
[1642100989423,0.1216,3290.0,3289.9,0.52693098]
[1642100989624,17.89,3290.1,3289.2,0.1215]
[1642100989823,0.1215,3290.2,3289.9,0.00113685]
[1642100990072,0.1215,3290.2,3289.3,1.5198541]
[1642100990073,1.15092012,3289.9,3289.3,1.52440149]
[1642100990376,1.15092012,3289.9,3289.4,0.12547897]
[1642100990570,0.12263684,3290.3,3289.4,0.12547897]
[1642100990571,0.00113684,3290.3,3289.4,0.12547897]
[1642100990773,0.1215,3290.2,3289.8,0.60791699]
[1642100991174,17.89,3290.1,3289.9,0.00113685]
[1642100991771,1.10885431,3290.0,3289.6,0.00284212]
[1642100991973,17.89,3290.1,3289.6,0.00284212]
[1642100992172,0.3,3290.0,3289.6,0.00284212]
[1642100992471,0.4215,3290.2,3289.9,0.59529506]
[1642100992673,0.7215,3290.2,3289.9,0.59529506]
[1642100992971,0.1215,3290.2,3289.9,0.59529506]
[1642100993177,0.1215,3290.2,3290.0,0.0407447]
[1642100993376,0.00113684,3290.3,3289.9,0.59529506]
[1642100994231,0.00113684,3290.3,3290.0,0.7597662]
[1642100995127,0.00113684,3290.3,3290.1,0.0399452]
[1642100995526,0.00113684,3290.3,3290.0,0.7597662]
[1642100996527,0.00113684,3290.3,3290.1,0.03851977]
[1642100996727,0.00113684,3290.3,3290.0,0.7597662]
[1642100997576,0.00113684,3290.3,3289.9,4.78745536]
[1642100998274,0.00113684,3290.3,3290.1,2.61362037]
[1642100999077,0.00113684,3290.3,3290.0,2.61362037]
[1642100999477,0.3,3290.2,3290.1,0.7598808]
[1642100999678,0.00113684,3290.3,3290.1,0.7598808]
[1642100999878,0.00113684,3290.3,3290.0,2.61362037]
[1642101000079,0.3,3290.2,3290.0,2.61362037]
[1642101000279,8.1715,3290.1,3290.0,2.61362037]
[1642101000479,27.525,3290.1,3290.0,2.61362037]
[1642101000679,27.825,3290.1,3290.0,2.61362037]
[1642101000880,28.825,3290.1,3290.0,2.61362037]
[1642101001080,28.825,3290.1,3289.9,2.672628]
[1642101001326,18.89,3290.0,3289.9,2.672628]
[1642101001525,19.3115,3290.0,3289.9,2.672628]
[1642101001724,18.3115,3290.0,3289.9,2.67376485]
[1642101002025,0.1215,3290.0,3289.9,2.67376485]
[1642101002523,18.928,3290.1,3289.9,2.67376485]
[1642101002524,18.628,3290.1,3289.9,2.67376485]
[1642101002925,18.928,3290.1,3289.9,2.67376485]
[1642101003324,5.49063726,3290.0,3289.9,2.67376485]
[1642101003727,18.928,3290.1,3289.9,2.67376485]
[1642101004326,18.628,3290.1,3289.9,2.67376485]
[1642101004524,18.928,3290.1,3289.9,2.67376485]
[1642101004724,19.46945445,3290.1,3289.9,2.67376485]
[1642101004977,19.76945445,3290.1,3289.9,2.67376485]
[1642101005773,19.89095445,3290.1,3289.9,2.67376485]
[1642101005974,19.76945445,3290.1,3289.9,2.67376485]
[1642101006574,0.1215,3290.0,3289.9,2.67376485]
[1642101006776,19.76945445,3290.1,3289.9,2.67376485]
[1642101007077,20.96748445,3290.1,3289.9,2.67376485]
[1642101007275,7.4,3290.0,3289.9,2.67376485]
[1642101007479,7.5215,3290.0,3289.9,2.67376485]
[1642101008576,18.9615,3290.0,3289.9,2.67376485]
[1642101009227,18.0115,3290.0,3289.9,2.67376485]
[1642101009928,18.0115,3290.0,3288.9,0.1215]
[1642101009929,0.5267,3289.6,3288.9,0.1215]
[1642101010128,1.28440285,3289.1,3288.9,0.1215]
[1642101010327,3.8767,3289.0,3288.9,0.1215]
[1642101010726,23.3667,3289.0,3288.9,0.12718423]
[1642101010928,23.8047,3289.0,3288.9,0.12718423]
[1642101012875,23.9263,3289.0,3288.9,0.12718423]
[1642101013076,19.5763,3289.0,3288.9,0.12718423]
[1642101013278,1.1267,3289.0,3288.9,0.12718423]
[1642101014180,0.5267,3289.0,3288.9,0.00568423]
[1642101014376,0.5267,3289.0,3288.9,0.12728423]
[1642101014576,0.5267,3289.0,3288.9,8.47728423]
[1642101015180,0.5267,3289.0,3288.9,12.52265414]
[1642101015978,0.045463,3289.8,3289.1,0.68363237]
[1642101016228,1.4956785,3289.8,3289.2,0.1216]
[1642101016428,17.89,3289.7,3289.3,1.5200042]
[1642101016629,17.89,3289.7,3289.3,1.52341474]
[1642101016931,17.89,3289.7,3289.4,0.00284212]
[1642101017129,18.19,3289.7,3289.4,0.00284212]
[1642101017331,17.89,3289.6,3289.4,0.00284212]
[1642101017529,0.3,3289.6,3289.4,0.00284212]
[1642101017731,17.89,3289.7,3289.4,0.00284212]
[1642101017932,18.19,3289.7,3289.4,0.00284212]
[1642101018131,19.71026,3289.7,3289.4,0.00284212]
[1642101018331,0.3,3289.6,3289.4,0.00284212]
[1642101018532,17.89,3289.5,3289.4,0.00284212]
[1642101018932,18.19,3289.5,3289.2,0.00397896]
[1642101019133,0.76023,3289.4,3289.2,0.00397896]
[1642101019333,0.1216,3289.3,3289.1,0.00454739]
[1642101019535,17.89,3289.2,3289.1,0.00454739]
[1642101019983,18.49,3289.2,3289.1,0.00454739]
[1642101020378,21.33815528,3289.2,3289.1,0.00454739]
[1642101020676,22.09851528,3289.2,3289.1,0.00454739]
[1642101021279,22.09851528,3289.2,3287.9,0.20351576]
[1642101021280,17.89,3289.0,3287.9,0.20351576]
[1642101021481,24.9996,3288.9,3287.9,0.20351576]
[1642101021681,24.9996,3288.9,3287.8,1.54618135]
[1642101021682,9.95,3288.7,3287.8,1.54618135]
[1642101021880,9.95,3288.7,3287.7,0.1216]
[1642101021881,0.045463,3287.9,3287.5,2.33665528]
[1642101022084,0.045463,3287.9,3287.3,3.11672589]
[1642101022085,0.9127,3287.6,3287.3,3.11672589]
[1642101022279,6.8127,3287.4,3287.3,2.07069697]
[1642101022482,6.8127,3287.4,3287.1,3.11672589]
[1642101022483,0.9127,3287.3,3287.1,3.11672589]
[1642101022681,19.3623,3287.2,3287.1,3.11672589]
[1642101022982,0.9127,3287.2,3287.1,3.61776078]
[1642101023180,0.9127,3287.2,3287.1,3.11672589]
[1642101023928,0.9127,3287.2,3286.7,0.1216]
[1642101024127,0.9127,3287.2,3286.9,0.49991612]
[1642101024729,0.0001,3287.2,3286.9,0.49991612]
[1642101025326,0.0001,3287.2,3286.8,0.01307374]
[1642101025527,0.0001,3287.2,3287.0,2.61549409]
[1642101025931,0.0001,3287.2,3287.1,0.01136847]
[1642101026135,17.8901,3287.2,3287.1,0.01136847]
[1642101026429,0.0001,3287.2,3287.1,0.01136847]
[1642101026629,17.8901,3287.2,3287.1,0.01136847]
[1642101026830,17.8901,3287.2,3287.0,0.01193689]
[1642101027032,0.0001,3287.2,3287.1,10.0716]
[1642101027234,0.9127,3287.5,3287.2,11.17641283]
[1642101027484,0.9127,3287.5,3287.3,0.1216]
[1642101027673,0.9127,3287.5,3287.3,0.13183162]
[1642101027873,0.9127,3287.5,3287.4,8.9596632]
[1642101028073,0.9127,3287.5,3287.4,9.0812632]
[1642101028475,1.50356967,3288.0,3287.4,9.66740493]
[1642101028676,0.045463,3288.3,3287.4,9.66740493]
[1642101028875,0.045463,3288.3,3287.8,0.01204971]
[1642101029076,0.1569,3289.6,3287.8,0.01204971]
[1642101029077,0.045463,3288.7,3287.8,0.01204971]
[1642101029274,3.27703518,3289.2,3287.9,0.12842108]
[1642101029475,0.045463,3288.7,3287.9,0.00682108]